bitfinex-derivatives/quotes_ETHF0:USTF0_20250726
["timestamp","ask_amount","ask_price","bid_price","bid_amount"]
[1753515376282,1.86283,3744.0,3743.9,1.4254]
[1753515376487,2.25993,3744.0,3743.9,1.4254]
[1753515376681,3.00748911,3744.0,3743.9,1.4254]
[1753515379479,3.00748911,3744.0,3743.8,3.40545749]
[1753515379480,0.53404,3743.9,3743.8,3.40545749]
[1753515379686,3.00756379,3743.9,3743.8,0.19765749]
[1753515380389,3.00757318,3743.9,3743.8,0.19765749]
[1753515381893,3.00757318,3743.9,3743.8,0.40635749]
[1753515382092,3.00757318,3743.9,3743.8,0.69295749]
[1753515383091,3.00757318,3743.9,3743.8,0.19765749]
[1753515385792,3.00731213,3743.9,3743.8,0.19765749]
[1753515392996,3.00731213,3743.9,3743.8,1.34685749]
[1753515393195,3.00731213,3743.9,3743.8,1.60935749]
[1753515394495,3.00731213,3743.9,3743.8,0.38855749]
[1753515398107,3.00731213,3743.9,3743.8,0.69705749]
[1753515398405,3.00731213,3743.9,3743.8,0.98795749]
[1753515399607,3.00731213,3743.9,3743.8,0.38855749]
[1753515400105,3.00731213,3743.9,3743.8,0.19765749]
[1753515402417,3.23926943,3743.9,3743.8,0.19765749]
[1753515402801,3.23926943,3743.9,3743.8,1.31845749]
[1753515403008,3.00731213,3743.9,3743.8,1.60935749]
[1753515403311,3.00351269,3743.9,3743.8,1.60935749]
[1753515407818,1.27761269,3743.9,3743.8,1.60935749]
[1753515408207,1.27761269,3743.9,3743.8,4.81715749]
[1753515408408,1.71631269,3743.9,3743.8,4.81715749]
[1753515408615,2.00591269,3743.9,3743.8,4.81715749]
[1753515408813,2.30161269,3743.9,3743.8,4.81715749]
[1753515409012,2.99841269,3743.9,3743.8,4.81715749]
[1753515409614,2.99841269,3743.9,3743.8,3.79115749]
[1753515410014,3.23040514,3743.9,3743.8,0.58335749]
[1753515411612,3.23040514,3743.9,3743.8,0.38855749]
[1753515412122,2.99841269,3743.9,3743.8,0.38855749]
[1753515412615,2.99841269,3743.9,3743.8,1.15205749]
[1753515412820,2.99841269,3743.9,3743.8,1.34685749]
[1753515413022,3.23037761,3743.9,3743.8,1.34685749]
[1753515413827,3.23037761,3743.9,3743.8,0.89185749]
[1753515414030,3.23037761,3743.9,3743.8,0.38855749]
[1753515414827,2.48300548,3743.9,3743.8,0.38855749]
[1753515415021,3.23109973,3743.9,3743.8,0.38855749]
[1753515419043,3.23109973,3743.9,3743.8,0.19765749]
[1753515421746,3.23109973,3743.9,3743.8,0.38855749]
[1753515421944,3.23109973,3743.9,3743.8,0.67465749]
[1753515422842,3.23109973,3743.9,3743.8,0.38855749]
[1753515423039,3.23109973,3743.9,3743.8,0.19765749]
[1753515423242,0.53415,3743.1,3743.0,3.8597]
[1753515423640,0.53415,3743.1,3743.0,4.1709]
[1753515423840,0.82805,3743.1,3743.0,1.4131]
[1753515424040,0.53415,3743.1,3743.0,1.4131]
[1753515424845,1.28202439,3743.1,3743.0,1.4131]
[1753515425650,0.53415,3743.1,3743.0,1.4131]
[1753515427546,0.53415,3743.1,3743.0,1.94726]
[1753515427849,0.53415,3743.1,3743.0,1.4131]
[1753515428049,0.53415,3743.1,3743.0,1.94726]
[1753515428250,4.54297,3743.7,3743.0,1.18606]
[1753515428551,1.0179,3743.4,3743.1,0.6519]
[1753515428750,1.28185293,3743.3,3743.2,1.2492]
[1753515429751,1.71305293,3743.3,3743.2,1.2492]
[1753515429953,1.71305293,3743.3,3743.2,1.4131]
[1753515430454,2.00695293,3743.3,3743.2,1.4131]
[1753515430752,2.81225293,3743.3,3743.2,1.4131]
[1753515430952,3.00045293,3743.3,3743.2,1.4131]
[1753515434752,1.7186,3743.2,3743.1,0.2006]
[1753515434950,2.46633293,3743.2,3743.1,0.2006]
[1753515435149,3.00047293,3743.2,3743.1,0.2006]
[1753515437648,3.00047293,3743.2,3743.1,0.5118]
[1753515437960,3.00047293,3743.2,3743.1,0.7979]
[1753515440059,3.00047293,3743.2,3743.1,0.9621]
[1753515440555,3.00047293,3743.2,3743.1,1.1512]
[1753515440952,3.00047293,3743.2,3743.1,1.414]
[1753515445756,2.17353293,3743.2,3743.1,1.414]
[1753515446061,1.59498293,3743.2,3743.1,1.414]
[1753515446256,2.02618293,3743.2,3743.1,1.414]
[1753515446458,1.78593293,3743.2,3743.1,1.94817]
[1753515446657,1.78593293,3743.2,3743.1,1.414]
[1753515446858,2.61288293,3743.2,3743.1,1.414]
[1753515447059,3.00048293,3743.2,3743.1,1.414]
[1753515451762,3.00048293,3743.2,3743.1,1.1512]
[1753515452065,1.2329,3742.9,3742.8,0.8355]
[1753515452364,3.02673293,3742.9,3742.8,1.4234]
[1753515453664,3.02673293,3742.9,3742.8,1.1605]
[1753515453964,3.02673293,3742.9,3742.8,1.4234]
[1753515454261,3.02672293,3742.9,3742.8,1.4234]
[1753515457867,2.49253293,3742.9,3742.8,1.9576]
[1753515458069,1.7448,3742.9,3742.8,1.9576]
[1753515462160,2.4918123,3742.9,3742.8,1.9576]
[1753515464970,3.0260023,3742.9,3742.8,1.4234]
[1753515465666,3.0260023,3742.9,3742.8,1.9576]
[1753515466067,2.4918123,3742.9,3742.8,1.9576]
[1753515466673,3.0260023,3742.9,3742.8,1.9576]
[1753515468773,3.0260023,3742.9,3742.8,1.4234]
[1753515470275,3.0260023,3742.9,3742.8,1.9576]
[1753515470664,2.27899,3742.9,3742.8,1.4234]
[1753515470870,3.02695392,3742.9,3742.8,1.4234]
[1753515471175,3.02695392,3742.9,3742.8,1.9576]
[1753515471978,3.02695392,3742.9,3742.8,1.4234]
[1753515472278,3.02695392,3742.9,3742.8,1.9576]
[1753515473472,3.02695392,3742.9,3742.8,1.4234]
[1753515474176,3.02695392,3742.9,3742.8,1.9576]
[1753515474377,3.02695392,3742.9,3742.8,1.4234]
[1753515475172,3.02695392,3742.9,3742.8,0.4083]
[1753515475379,3.02695392,3742.9,3742.8,0.2081]
[1753515475778,3.02695392,3742.9,3742.8,0.796]
[1753515476174,3.02695392,3742.9,3742.8,0.9603]
[1753515476774,3.02695392,3742.9,3742.8,0.2866]
[1753515476982,2.279,3742.8,3742.7,3.2078]
[1753515477282,3.02696392,3742.8,3742.7,3.2078]
[1753515477479,3.02696392,3742.8,3742.7,3.4159]
[1753515477679,3.02696392,3742.8,3742.7,4.3683]
[1753515478081,3.02696392,3742.8,3742.7,4.90252]
[1753515479383,3.02696392,3742.8,3742.7,4.3683]
[1753515479784,3.02696392,3742.8,3742.7,1.1605]
[1753515480385,2.49276392,3742.8,3742.7,1.69472]
[1753515480686,2.49276392,3742.8,3742.7,1.95762]
[1753515481785,2.49276392,3742.8,3742.7,1.1605]
[1753515481786,3.02696392,3742.8,3742.7,1.1605]
[1753515482584,0.6867,3742.6,3742.5,0.4113]
[1753515482777,1.7162,3742.6,3742.5,1.1814]
[1753515482978,2.25043,3742.6,3742.5,1.1814]
[1753515483684,2.99847444,3742.6,3742.5,1.1814]
[1753515484689,2.99847444,3742.6,3742.5,1.4439]
[1753515485592,2.9983168,3742.6,3742.5,1.4439]
[1753515488194,2.9983168,3742.6,3742.5,1.97814]
[1753515488401,2.9983168,3742.6,3742.5,1.4439]
[1753515494094,2.9983168,3742.6,3742.5,1.1814]
[1753515498405,1.22096,3742.4,3742.3,3.7832]
[1753515498603,2.74054452,3742.4,3742.3,4.3892]
[1753515500601,2.74054452,3742.4,3742.3,1.1814]
[1753515501496,3.48896123,3742.4,3742.3,1.1814]
[1753515501902,1.22099,3742.2,3742.1,0.7145]
[1753515502104,1.0295,3742.0,3741.8,4.17576314]
[1753515502305,2.25053,3741.9,3741.8,4.58706314]
[1753515502700,2.25053,3741.9,3741.8,4.84976314]
[1753515506208,2.25053,3741.9,3741.8,1.64196314]
[1753515508903,2.25053,3741.9,3741.8,2.17630314]
[1753515509103,2.25053,3741.9,3741.8,1.64196314]
[1753515509302,2.25053,3741.9,3741.8,2.17630314]
[1753515510309,2.25053,3741.9,3741.8,1.64196314]
[1753515511811,2.25053,3741.9,3741.8,2.17630314]
[1753515512404,2.25053,3741.9,3741.8,1.64196314]
[1753515513410,2.25053,3741.9,3741.8,2.17630314]
[1753515514112,2.25053,3741.9,3741.8,1.64196314]
[1753515517407,2.25053,3741.9,3741.8,2.17631314]
[1753515518209,2.25053,3741.9,3741.8,1.64196314]
[1753515518812,2.25053,3741.9,3741.8,2.17631314]
[1753515520414,2.25053,3741.9,3741.8,1.64196314]
[1753515520614,1.7162,3741.9,3741.8,2.17631314]
[1753515520809,0.289,3742.2,3742.1,1.947]
[1753515521109,0.53427,3742.4,3742.3,0.92858]
[1753515521110,0.3008,3742.4,3742.3,0.92858]
[1753515521312,1.86695,3742.5,3742.4,1.4127]
[1753515521514,2.29109037,3742.5,3742.4,1.94696]
[1753515521815,1.04669037,3742.5,3742.4,2.43704452]
[1753515522015,1.48709037,3742.5,3742.4,2.43704452]
[1753515522312,2.09039037,3742.5,3742.4,2.43704452]
[1753515522515,1.3327,3742.5,3742.4,2.43704452]
[1753515523115,1.7392,3742.5,3742.4,1.94696]
[1753515525618,2.27345,3742.5,3742.4,1.4127]
[1753515527518,1.7392,3742.5,3742.4,1.94696]
[1753515528312,2.27345,3742.5,3742.4,1.4127]
[1753515529214,2.27345,3742.5,3742.4,1.94696]
[1753515529416,2.27345,3742.5,3742.4,1.4127]
[1753515531920,1.5334,3743.0,3742.9,1.94689]
[1753515532217,0.76507125,3743.0,3742.9,5.64477452]
[1753515533315,1.3327,3743.3,3743.2,1.19124]
[1753515533515,2.0973016,3743.3,3743.2,1.19124]
[1753515533722,1.0536016,3743.3,3743.2,1.68132452]
[1753515533918,1.0536016,3743.3,3743.2,2.43692452]
[1753515534320,0.7646016,3743.3,3743.2,2.43692452]
[1753515534718,0.7646016,3743.3,3743.2,1.94684]
[1753515535525,1.7392,3743.7,3743.6,1.19119]
[1753515535726,2.5033515,3743.7,3743.6,5.15459]
[1753515536522,2.2025515,3743.7,3743.6,5.15459]
[1753515536823,0.7641515,3743.7,3743.6,5.15459]
[1753515537229,0.7412,3743.9,3743.8,0.73956]
[1753515537430,2.09661699,3743.9,3743.8,1.94676]
[1753515538229,2.29731699,3743.9,3743.8,1.94676]
[1753515538627,2.50311699,3743.9,3743.8,1.94676]
[1753515539132,2.50311699,3743.9,3743.8,1.4127]
[1753515540131,1.7392,3743.9,3743.8,1.4127]
[1753515540329,1.7392,3743.9,3743.8,1.94676]
[1753515540530,1.7392,3743.9,3743.8,1.4127]
[1753515541032,1.7392,3743.9,3743.8,1.94676]
[1753515543331,1.7392,3743.9,3743.8,1.4127]
[1753515543631,1.7392,3743.9,3743.8,1.94676]
[1753515545834,1.7392,3743.9,3743.8,1.4127]
[1753515546031,2.27325,3743.9,3743.8,1.4127]
[1753515546227,1.7392,3743.9,3743.8,1.94676]
[1753515553741,1.7623,3744.1,3744.0,1.35743]
[1753515553941,1.7623,3744.1,3744.0,1.95053]
[1753515559944,2.29632,3744.1,3744.0,1.95053]
[1753515560544,1.7623,3744.1,3744.0,1.95053]
[1753515561149,2.29632,3744.1,3744.0,0.53403]
[1753515561345,1.0567,3744.0,3743.9,0.53404]
[1753515561543,0.7056,3743.7,3743.6,3.2078]
[1753515561748,0.7056,3743.3,3743.2,13.21913]
[1753515562053,1.7623,3743.1,3743.0,5.15848]
[1753515568557,1.7623,3743.1,3743.0,4.89508]
[1753515569450,1.7623,3743.1,3743.0,17.58208]
[1753515570859,1.7623,3743.1,3743.0,4.89508]
[1753515571054,1.7623,3743.1,3743.0,17.58208]
[1753515571252,1.7623,3743.1,3743.0,4.89508]
[1753515571451,1.7623,3743.1,3743.0,3.2078]
[1753515571668,1.7623,3743.1,3742.5,0.2964]
[1753515571669,0.9809,3742.7,3742.6,3.2078]
[1753515571850,1.7476,3742.7,3742.6,15.8948]
[1753515572255,3.04613195,3742.7,3742.6,15.8998]
[1753515572851,1.22393,3742.6,3742.5,12.693]
[1753515573059,0.6897,3742.3,3742.2,0.53429]
[1753515573258,1.7476,3742.3,3742.2,13.23229]
[1753515575460,2.28188,3742.3,3742.2,12.698]
[1753515576159,0.9809,3742.1,3742.0,0.53431]
[1753515576359,2.28191,3742.1,3742.0,12.698]
[1753515577561,1.7476,3742.1,3742.0,13.42222]
[1753515577860,1.7476,3742.1,3742.0,14.16962]
[1753515578363,1.7476,3742.1,3742.0,14.37382]
[1753515580466,1.7476,3742.1,3742.0,14.63722]
[1753515581968,2.28191,3742.1,3742.0,14.63722]
[1753515582170,1.7476,3742.1,3742.0,14.63722]
[1753515584564,3.2078,3742.6,3742.3,1.4049]
[1753515584769,3.2078,3742.6,3742.5,1.93914]
[1753515584970,3.2078,3742.6,3742.5,14.64214]
[1753515585368,0.7667,3742.8,3742.7,1.00182]
[1753515585569,0.459,3742.8,3742.7,1.93912]
[1753515585870,0.459,3743.1,3743.0,1.19167]
[1753515586173,1.3481,3743.1,3743.0,1.93907]
[1753515586367,1.7476,3743.1,3743.0,1.93907]
[1753515586570,1.7476,3743.1,3743.0,1.4049]
[1753515588271,2.28176,3743.1,3743.0,1.4049]
[1753515588476,1.7476,3743.1,3743.0,1.4049]
[1753515588772,1.7476,3743.1,3743.0,1.93907]
[1753515589470,1.7476,3743.1,3743.0,1.4049]
[1753515589669,1.7476,3743.1,3743.0,1.93907]
[1753515596172,0.4887,3743.3,3743.2,0.4533]
[1753515596371,1.7476,3743.3,3743.2,1.93905]
[1753515598275,1.7476,3743.3,3743.2,5.14685]
[1753515598679,1.7476,3743.3,3743.2,1.93905]
[1753515599674,1.7476,3743.3,3743.2,1.4049]
[1753515600179,1.7476,3743.3,3743.2,1.93905]
[1753515600679,1.7476,3743.3,3743.2,1.4049]
[1753515600880,1.7476,3743.3,3743.2,1.67565]
[1753515603077,1.7476,3743.3,3743.2,1.1415]
[1753515603382,1.7476,3743.3,3743.2,1.67565]
[1753515606383,1.7476,3743.3,3743.2,1.93795]
[1753515608081,1.7329,3743.5,3743.4,1.19002]
[1753515608280,1.7329,3743.5,3743.4,1.94472]
[1753515608886,0.2857,3743.8,3743.7,1.94468]
[1753515609187,0.5991,3743.8,3743.7,1.94468]
[1753515609487,1.7329,3743.8,3743.7,1.94468]
[1753515615181,2.49700399,3743.8,3743.7,1.94468]
[1753515616184,1.7329,3743.8,3743.7,1.94468]
[1753515618691,1.7329,3743.8,3743.7,1.68238]
[1753515619082,1.7329,3743.8,3743.7,1.94468]
[1753515619980,1.7329,3743.8,3743.7,1.68238]
[1753515620185,1.7329,3743.8,3743.7,1.51848]
[1753515621090,1.7329,3743.8,3743.7,1.68238]
[1753515621695,1.7329,3743.8,3743.7,1.94468]
[1753515623293,1.7329,3743.8,3743.7,1.68238]
[1753515623488,2.4969265,3743.8,3743.7,1.68238]
[1753515623690,1.7329,3743.8,3743.7,1.68238]
[1753515624387,2.49696565,3743.8,3743.7,1.68238]
[1753515625788,2.07196565,3743.8,3743.7,1.51848]
[1753515625993,2.49696565,3743.8,3743.7,1.68238]
[1753515633395,2.49696565,3743.8,3743.7,1.94528]
[1753515638996,2.49696565,3743.8,3743.7,1.95822324]
[1753515645094,0.76406565,3743.8,3743.7,2.63631986]
[1753515645297,1.0369,3744.3,3743.7,2.10223986]
[1753515645606,1.7198,3744.3,3744.2,1.98461]
[1753515645803,2.48536158,3744.3,3744.2,1.98461]
[1753515646104,2.48536158,3744.3,3744.2,1.99755324]
[1753515662624,0.76556158,3744.3,3744.2,1.99755324]
[1753515662823,1.4251,3744.7,3744.6,0.73665]
[1753515663128,2.48260344,3744.7,3744.6,1.96959324]
[1753515663427,2.48260344,3744.7,3744.6,0.41184324]
[1753515663725,2.48260344,3744.7,3744.6,0.20914324]
[1753515664824,2.48260344,3744.7,3744.6,1.23179324]
[1753515665024,2.48260344,3744.7,3744.6,1.96959324]
[1753515665234,0.76460344,3744.7,3744.6,1.96959324]
[1753515665621,1.437685,3745.4,3745.3,1.52835]
[1753515665928,1.730585,3745.6,3745.4,0.3989]
[1753515666128,1.437685,3745.6,3745.5,1.54127324]
[1753515666317,2.180085,3745.8,3745.7,0.2027]
[1753515666522,0.51219137,3745.8,3745.7,1.5283]
[1753515667130,0.21789137,3745.8,3745.7,1.54124324]
[1753515667522,1.2442,3745.9,3745.8,1.52828]
[1753515667724,1.5371,3745.9,3745.8,1.52828]
[1753515667923,1.7295,3745.9,3745.8,1.52828]
[1753515668129,1.7295,3745.9,3745.8,1.54122324]
[1753515668829,1.7295,3745.9,3745.8,1.00744324]
[1753515670426,1.7295,3745.9,3745.8,1.54122324]
[1753515670628,1.7295,3745.9,3745.8,1.00744324]
[1753515670831,1.7295,3745.9,3745.8,1.54122324]
[1753515671134,1.7295,3745.9,3745.8,1.00744324]
[1753515672329,1.7295,3745.9,3745.8,1.54122324]
[1753515673428,1.918,3745.9,3745.8,1.00744324]
[1753515674339,1.918,3745.9,3745.8,1.54122324]
[1753515675034,1.4277,3745.9,3745.8,1.54122324]
[1753515675433,0.2,3745.9,3745.8,1.54122324]
[1753515676733,1.7295,3745.9,3745.8,1.54122324]
[1753515676928,1.918,3745.9,3745.8,1.54122324]
[1753515678338,1.918,3745.9,3745.8,0.94562324]
[1753515679135,1.918,3745.9,3745.8,1.54122324]
[1753515679334,1.918,3745.9,3745.8,0.01294324]
[1753515683142,2.45177,3745.9,3745.8,0.01294324]
[1753515684044,1.918,3745.9,3745.8,0.01294324]
[1753515684735,2.45177,3745.9,3745.8,0.01294324]
[1753515685138,1.918,3745.9,3745.8,0.01294324]
[1753515689741,2.45177,3745.9,3745.8,0.01294324]
[1753515690645,3.12986662,3745.9,3745.8,0.01294324]
[1753515694547,3.88400673,3745.9,3745.8,0.01294324]
[1753515695841,3.20591011,3745.9,3745.8,0.01294324]
[1753515696237,3.20591011,3745.9,3745.8,0.20704324]
[1753515696441,3.20591011,3745.9,3745.8,0.99754324]
[1753515697138,2.67214011,3745.9,3745.8,0.99754324]
[1753515697344,2.67214011,3745.9,3745.8,1.53132324]
[1753515698348,2.67214011,3745.9,3745.8,0.99754324]
[1753515699145,2.67214011,3745.9,3745.8,1.53132324]
[1753515699645,2.37924011,3745.9,3745.8,1.53132324]
[1753515699848,0.95414011,3745.9,3745.8,1.53132324]
[1753515701748,1.0174,3746.5,3746.4,0.9304]
[1753515701946,2.05897549,3746.5,3746.4,1.5183]
[1753515702146,2.45777549,3746.5,3746.4,0.99754324]
[1753515703149,2.45777549,3746.5,3746.4,1.53124324]
[1753515703453,2.45777549,3746.5,3746.4,0.99754324]
[1753515705452,2.45777549,3746.5,3746.4,1.53124324]
[1753515705749,2.45777549,3746.5,3746.4,0.99754324]
[1753515705948,2.45777549,3746.5,3746.4,1.53124324]
[1753515706952,2.45777549,3746.5,3746.4,0.99754324]
[1753515707553,2.45777549,3746.5,3746.4,1.53124324]
[1753515710748,1.7022,3746.5,3746.4,1.53124324]
[1753515711146,1.4162,3746.7,3746.6,0.93037]
[1753515711346,2.45693783,3746.7,3746.6,0.9846]
[1753515712253,2.45693783,3746.7,3746.6,0.99754324]
[1753515713152,2.99059783,3746.7,3746.6,0.99754324]
[1753515713347,2.45693783,3746.7,3746.6,1.53121324]
[1753515717359,1.7022,3746.7,3746.6,1.53121324]
[1753515719960,1.0494,3747.0,3746.9,0.94833]
[1753515720160,1.5469,3747.0,3746.9,0.94833]
[1753515720355,2.30077804,3747.0,3746.9,0.96127324]
[1753515720556,2.50847804,3747.0,3746.9,1.56257324]
[1753515720762,2.05677804,3747.0,3746.9,1.02894324]
[1753515720950,2.50847804,3747.0,3746.9,1.02894324]
[1753515721259,2.50847804,3747.0,3746.9,1.56257324]
[1753515721662,1.7546,3747.0,3746.9,1.56257324]
[1753515722463,1.2405,3747.2,3747.1,0.9483]
[1753515722658,0.75373445,3747.2,3747.1,1.5496]
[1753515723158,1.5649,3747.3,3747.2,1.54958]
[1753515723466,2.52635249,3747.3,3747.2,1.56252324]
[1753515724262,1.7726,3747.3,3747.2,1.56252324]
[1753515734969,1.7726,3747.3,3747.2,0.01294324]
[1753515735473,1.7726,3747.3,3747.2,1.35662324]
[1753515735672,1.7726,3747.3,3747.2,1.02894324]
[1753515736473,2.30617,3747.3,3747.2,1.02894324]
[1753515737074,2.30617,3747.3,3747.2,0.01294324]
[1753515740371,3.0594573,3747.3,3747.2,0.01294324]
[1753515743277,0.7052,3746.7,3746.6,1.04456]
[1753515743476,1.7546,3746.7,3746.6,1.34376]
[1753515743776,1.7546,3746.7,3746.6,1.56166]
[1753515744874,1.7546,3746.7,3746.6,1.58076]
[1753515749378,1.7546,3746.7,3746.6,1.0471]
[1753515749580,1.7546,3746.7,3746.6,1.58077]
[1753515752082,1.7546,3746.7,3746.6,1.0471]
[1753515752277,1.7546,3746.7,3746.6,1.58077]
[1753515753481,1.7546,3746.7,3746.4,3.2078]
[1753515753482,1.7244,3747.0,3746.9,0.94751]
[1753515753679,2.4785039,3747.0,3746.9,1.57133]
[1753515753878,2.4785039,3747.0,3746.9,1.0377]
[1753515754286,3.0121139,3747.0,3746.9,1.0377]
[1753515754983,2.4785039,3747.0,3746.9,1.0377]
[1753515755277,3.0121139,3747.0,3746.9,1.0377]
[1753515756386,3.0121139,3747.0,3746.9,1.0177]
[1753515756983,3.0121139,3747.0,3746.9,1.55133]
[1753515757184,2.4785039,3747.0,3746.9,1.55133]
[1753515758784,3.0121139,3747.0,3746.9,1.55133]
[1753515759086,2.4785039,3747.0,3746.9,1.55133]
[1753515759281,3.0121139,3747.0,3746.9,1.55133]
[1753515759685,3.0121139,3747.0,3746.9,1.0177]
[1753515761188,3.0121139,3747.0,3746.9,1.55133]
[1753515761487,3.0121139,3747.0,3746.9,1.0177]
[1753515761989,1.4333,3746.6,3746.5,3.6217]
[1753515762291,1.7244,3746.6,3746.5,16.82538]
[1753515762587,1.7244,3746.6,3746.5,17.44918]
[1753515762979,1.7244,3746.6,3746.5,4.77918]
[1753515763179,1.7244,3746.6,3746.5,17.44918]
[1753515764288,1.7244,3746.6,3746.5,4.77918]
[1753515764485,1.7244,3746.6,3746.5,17.44918]
[1753515764686,1.7244,3746.6,3746.5,14.24138]
[1753515764887,2.25807,3746.6,3746.5,14.24138]
[1753515765189,2.47871099,3746.6,3746.5,14.24138]
[1753515765390,2.47871099,3746.6,3746.5,1.57138]
[1753515765589,2.47871099,3746.6,3746.5,14.24138]
[1753515766990,2.47871099,3746.6,3746.5,1.55138]
[1753515767191,2.47871099,3746.6,3746.5,14.22138]
[1753515768692,2.47871099,3746.6,3746.5,1.55138]
[1753515768992,2.47871099,3746.6,3746.5,14.22238]
[1753515769182,2.47871099,3746.6,3746.5,1.56978]
[1753515769589,2.47871099,3746.6,3746.5,14.24078]
[1753515770796,2.47871099,3746.6,3746.5,1.56978]
[1753515770990,2.47871099,3746.6,3746.5,14.24078]
[1753515772696,2.47869931,3746.6,3746.5,14.24078]
[1753515772897,1.7244,3746.6,3746.5,14.72971321]
[1753515773298,2.47873611,3746.6,3746.5,14.72971321]
[1753515774796,1.0212,3746.9,3746.5,14.24078]
[1753515774995,2.08301664,3746.8,3746.7,0.4123]
[1753515775196,2.28971664,3746.8,3746.7,0.4123]
[1753515775397,2.28971664,3746.8,3746.7,1.0351]
[1753515775398,2.47871664,3746.8,3746.7,1.0351]
[1753515776194,2.47871664,3746.8,3746.7,13.7061]
[1753515779101,2.47871664,3746.8,3746.7,1.0351]
[1753515779301,2.47871664,3746.8,3746.7,13.7051]
[1753515779801,2.47871664,3746.8,3746.7,14.23875]
[1753515780301,2.47871664,3746.8,3746.7,13.7051]
[1753515780503,2.47871664,3746.8,3746.7,1.56875]
[1753515780697,2.47871664,3746.8,3746.7,2.24571834]
[1753515780902,0.75431664,3746.8,3746.7,2.24571834]
[1753515781401,1.0582,3747.1,3747.0,0.6142]
[1753515781596,1.0582,3747.1,3747.0,1.0296]
[1753515781597,2.11199359,3747.1,3747.0,1.0296]
[1753515781903,2.50239359,3747.1,3747.0,1.0296]
[1753515786607,1.7481,3747.1,3747.0,1.0296]
[1753515787696,2.50244475,3747.1,3747.0,1.0296]
[1753515789807,3.03604475,3747.1,3747.0,1.0296]
[1753515790011,2.50244475,3747.1,3747.0,1.0296]
[1753515792013,3.03604475,3747.1,3747.0,1.0296]
[1753515793111,2.50244475,3747.1,3747.0,1.0296]
[1753515793312,3.03604475,3747.1,3747.0,1.0296]
[1753515794708,2.50244475,3747.1,3747.0,1.0296]
[1753515794915,3.03604475,3747.1,3747.0,1.0296]
[1753515796516,2.50244475,3747.1,3747.0,1.0296]
[1753515796712,3.03603475,3747.1,3747.0,1.0296]
[1753515797416,2.50244475,3747.1,3747.0,1.0296]
[1753515800521,3.03603475,3747.1,3747.0,1.0296]
[1753515801017,2.50244475,3747.1,3747.0,1.0296]
[1753515801318,3.03603475,3747.1,3747.0,1.0296]
[1753515803720,3.03603475,3747.1,3747.0,1.0105]
[1753515804821,0.6899,3746.8,3746.6,0.012]
[1753515805122,1.7481,3746.6,3746.5,12.668]
[1753515805316,1.5515,3746.5,3746.4,1.0105]
[1753515805619,1.7481,3746.5,3746.4,13.6785]
[1753515805821,1.7481,3746.5,3746.4,13.6976]
[1753515808116,1.7481,3746.5,3746.4,1.0105]
[1753515808317,2.28178,3746.5,3746.4,13.6785]
[1753515808917,1.7481,3746.5,3746.4,13.6785]
[1753515809114,1.7481,3746.5,3746.3,3.2078]
[1753515809319,1.22358,3746.5,3746.4,12.668]
[1753515809518,1.97784163,3746.5,3746.4,12.668]
[1753515809922,2.46666163,3746.5,3746.4,12.668]
[1753515810224,1.7124,3746.5,3746.4,13.6747]
[1753515810427,0.018,3747.3,3746.7,0.4133]
[1753515810622,1.3121,3747.1,3747.0,1.5403]
[1753515810818,2.69661327,3747.1,3747.0,1.5403]
[1753515811126,2.45382977,3747.1,3747.0,1.5403]
[1753515812322,2.45382977,3747.1,3747.0,1.0067]
[1753515814424,2.45382977,3747.1,3747.0,1.54031]
[1753515814921,2.45382977,3747.1,3747.0,1.0067]
[1753515815828,2.45382977,3747.1,3747.0,1.54031]
[1753515817224,2.45382977,3747.1,3747.0,1.0067]
[1753515817529,2.45382977,3747.1,3747.0,1.54031]
[1753515817727,1.6997,3747.1,3747.0,1.54031]
[1753515818836,1.5248,3747.3,3747.2,0.74348]
[1753515819020,0.78179374,3747.3,3747.2,2.21709914]
[1753515820231,0.018,3747.3,3747.2,2.21709914]
[1753515821330,0.018,3747.3,3747.2,14.88509914]
[1753515825932,0.4468,3747.3,3747.2,14.88509914]
[1753515826322,0.018,3747.3,3747.2,14.88509914]
[1753515828931,1.429,3747.3,3747.2,14.20828]
[1753515829137,1.7177,3747.3,3747.2,14.20828]
[1753515833439,1.7177,3747.3,3747.2,17.41608]
[1753515835848,1.7177,3747.3,3747.2,14.20828]
[1753515836049,1.7177,3747.3,3747.2,17.41608]
[1753515837051,1.7177,3747.3,3747.2,4.74808]
[1753515837245,1.7177,3747.3,3747.2,17.41308]
[1753515840355,1.7177,3747.3,3747.2,17.41307]
[1753515840653,1.7177,3747.3,3747.2,3.2078]
[1753515840857,1.6999,3746.9,3746.8,12.665]
[1753515842256,0.69481914,3747.3,3746.7,3.2078]
[1753515842257,2.23352,3746.8,3746.7,3.2078]
[1753515842452,1.2696,3746.2,3746.1,23.2572]
[1753515842756,1.6999,3746.2,3746.1,35.9222]
[1753515843155,1.6999,3746.2,3746.1,23.2572]
[1753515843456,1.6999,3746.2,3746.1,35.9232]
[1753515843853,1.6999,3746.2,3746.1,36.76172]
[1753515844053,1.6999,3746.2,3746.1,24.61142]
[1753515844252,1.6999,3746.2,3746.1,37.27742]
[1753515844457,1.6999,3746.2,3746.1,1.56932]
[1753515844655,1.6999,3746.2,3746.1,14.23532]
[1753515846060,1.6999,3746.2,3746.1,13.7016]
[1753515848255,1.6999,3746.2,3746.1,14.23532]
[1753515848460,1.6999,3746.2,3746.1,14.23632]
[1753515848661,1.6999,3746.2,3746.1,13.7026]
[1753515848963,1.6999,3746.2,3746.1,16.9104]
[1753515849363,1.6999,3746.2,3746.1,17.44412]
[1753515851165,1.6999,3746.2,3746.1,16.9104]
[1753515852064,1.6999,3746.2,3746.1,17.44412]
[1753515852868,1.6999,3746.2,3746.1,16.9104]
[1753515853264,1.6999,3746.2,3746.1,17.44412]
[1753515854369,1.6999,3746.2,3746.1,17.44512]
[1753515854767,1.6999,3746.2,3746.1,14.23732]
[1753515855168,1.6999,3746.2,3746.1,17.44512]
[1753515855562,1.6999,3746.2,3746.1,16.9114]
[1753515856876,1.6999,3746.2,3746.1,17.44513]